fUST/lending_fUST_20250131
["ID","MTS","AMOUNT","RATE_DAILY","PERIOD"]
[350970698,1738257042424,-643.28,0.0002036,2]
[350970699,1738257042436,-150.0,0.000204,2]
[350970700,1738257042445,-157.570158,0.00020447,2]
[350970701,1738257042454,-10621.491304,0.00020452,2]
[350970702,1738257042464,-643.41617785,0.00020497,2]
[350970703,1738257042473,-587.0,0.00020518,2]
[350970704,1738257042482,-499.0,0.00020547,4]
[350970705,1738257042492,-500.0,0.00020547,11]
[350970706,1738257042501,-158.338,0.000209,2]
[350970707,1738257042510,-153.0,0.00020974,2]
[350970708,1738257042520,-153.0,0.00020974,2]
[350970709,1738257042530,-153.0,0.00020974,2]
[350970710,1738257042539,-153.0,0.00020974,2]
[350970711,1738257042549,-153.0,0.00020975,2]
[350970712,1738257042559,-153.0,0.00020975,2]
[350970713,1738257042568,-153.0,0.00020975,2]
[350970714,1738257042578,-153.0,0.00020975,2]
[350970715,1738257042587,-153.0,0.00020975,2]
[350970716,1738257042596,-280.859052,0.00021,2]
[350970717,1738257042606,-197.32128021,0.00021,60]
[350970718,1738257042615,-500.0,0.00021232,13]
[350970719,1738257042625,-500.0,0.00021296,7]
[350970720,1738257042635,-500.0,0.00021296,7]
[350970721,1738257042644,-500.0,0.00021296,7]
[350970722,1738257042654,-500.0,0.00021296,7]
[350970723,1738257042663,-500.0,0.00021296,7]
[350970724,1738257042673,-500.0,0.00021296,7]
[350970725,1738257042683,-500.0,0.00021296,7]
[350970726,1738257042692,-500.0,0.00021296,7]
[350970727,1738257042702,-500.0,0.00021296,7]
[350970728,1738257042712,-500.0,0.00021296,7]
[350970729,1738257042722,-500.0,0.00021296,7]
[350970730,1738257042732,-462.39,0.00021296,7]
[350970731,1738257042742,-165.793088,0.00021462,3]
[350970732,1738257042752,-395.0,0.00021466,2]
[350970733,1738257042762,-500.0,0.00021473,2]
[350970734,1738257042772,-8727.0,0.000216,4]
[350970735,1738257042781,-500.0,0.00021671,2]
[350970736,1738257042791,-8538.33628992,0.000219,5]
[350970737,1738257042801,-6302.42986811,0.000219,3]
[350970738,1738257042810,-500.0,0.00021917,7]
[350970739,1738257042820,-500.0,0.00021917,2]
[350970740,1738257042830,-499.0,0.00021917,6]
[350970741,1738257042840,-152.30703833,0.00021917,15]
[350970742,1738257042854,-681.53151898,0.00021918,5]
[350970743,1738257042864,-243.31875759,0.00021918,2]
[350970744,1738257042874,-10000.0,0.00021918,120]
[350970745,1738257042884,-500.0,0.00021973,2]
[350970746,1738257042895,-500.0,0.00021973,2]
[350970747,1738257042906,-5000.0,0.00021974,2]
[350970748,1738257042916,-5000.0,0.00021974,2]
[350970749,1738257042925,-5000.0,0.00021974,2]
[350970750,1738257042937,-5000.0,0.00021974,2]
[350970751,1738257042946,-500.0,0.00021997,2]
[350970752,1738257042957,-500.0,0.00021998,2]
[350970753,1738257042966,-156.64,0.00021998,2]
[350970754,1738257042976,-500.0,0.00021999,2]
[350970755,1738257042986,-500.0,0.00021999,2]
[350970757,1738257042995,-337.08702417,0.00021999,2]
[350970758,1738257043004,-151.98623375,0.00021999,2]
[350970761,1738257043014,-500.0,0.00021999,2]
[350970762,1738257043023,-500.0,0.00021999,2]
[350970764,1738257043033,-500.0,0.00021999,2]
[350970765,1738257043042,-500.0,0.00021999,2]
[350970767,1738257043052,-500.0,0.00021999,2]
[350970768,1738257043061,-500.0,0.00021999,2]
[350970769,1738257043072,-500.0,0.00021999,2]
[350970770,1738257043081,-343.75084844,0.00021999,2]
[350970771,1738257043091,-260418.24209348,0.00022,2]
[350970772,1738257043104,-4702.0724097,0.00022,2]
[350970779,1738257043889,-160.0,0.00020644,2]
[350970780,1738257043899,-1792.51992709,0.00022,2]
[350970798,1738257056348,165.178243,0.00013973,2]
[350970803,1738257356448,182.650086,0.00013699,2]
[350970804,1738257572111,2000.0,0.00020153,15]
[350970805,1738257783613,2004.0,0.00020453,15]
[350970807,1738257815652,10797.11851144,0.0002,30]
[350970810,1738257935160,-447.34284231,0.0001563,2]
[350970818,1738257980739,165.178243,0.00013973,2]
[350970820,1738258038099,-190.96803706,0.0001563,2]
[350970821,1738258039085,-1869.05318869,0.0001563,2]
[350970825,1738258145103,-513.088245,0.00015273,2]
[350970826,1738258145127,-5188.44402164,0.0001563,2]
[350970827,1738258145150,-204.47646558,0.00015871,2]
[350970828,1738258145171,-300.0,0.00015879,2]
[350970829,1738258145191,-24900.0,0.0001588,2]
[350970830,1738258145213,-292.24517717,0.00016337,2]
[350970831,1738258145235,-1001.00671613,0.00016437,2]
[350970832,1738258145256,-286.90677213,0.00016438,2]
[350970833,1738258145278,-500.0,0.00016438,2]
[350970834,1738258145300,-500.0,0.00016438,2]
[350970835,1738258145321,-504.49697437,0.00016438,2]
[350970836,1738258145346,-500.0,0.00016438,2]
[350970837,1738258145373,-500.0,0.00016438,2]
[350970838,1738258145536,-501.48189135,0.00016438,2]
[350970839,1738258145559,-500.0,0.00016438,2]
[350970840,1738258145580,-500.0,0.00016438,2]
[350970841,1738258145601,-541.74,0.00016438,2]
[350970842,1738258145621,-189.29165715,0.00016438,2]
[350970843,1738258145644,-500.0,0.00016438,2]
[350970844,1738258145666,-500.0,0.00016438,2]
[350970845,1738258145687,-500.0,0.00016438,2]
[350970846,1738258145708,-500.0,0.00016438,2]
[350970847,1738258145729,-500.0,0.00016438,2]
[350970848,1738258145751,-500.0,0.00016438,2]
[350970849,1738258145772,-500.0,0.00016438,2]
[350970850,1738258145792,-500.0,0.00016438,2]
[350970851,1738258145813,-500.0,0.00016438,2]
[350970852,1738258145834,-500.0,0.00016438,2]
[350970853,1738258145854,-500.0,0.00016438,2]
[350970854,1738258145874,-500.0,0.00016438,2]
[350970855,1738258145896,-500.0,0.00016438,2]
[350970856,1738258145915,-500.0,0.00016438,2]
[350970857,1738258145935,-564.02,0.00016438,2]
[350970858,1738258145956,-500.0,0.00016438,2]
[350970859,1738258145977,-500.0,0.00016438,2]
[350970860,1738258145997,-500.0,0.00016438,2]
[350970861,1738258146017,-500.0,0.00016438,2]
[350970862,1738258146039,-500.0,0.00016438,2]
[350970863,1738258146059,-500.0,0.00016438,2]
[350970864,1738258146080,-500.0,0.00016438,2]
[350970865,1738258146102,-500.0,0.00016438,2]
[350970866,1738258146122,-500.0,0.00016438,2]
[350970867,1738258146144,-500.0,0.00016438,2]
[350970868,1738258146164,-522.02533844,0.00016438,2]
[350970869,1738258146185,-500.0,0.00016438,2]
[350970870,1738258146205,-500.0,0.00016438,2]
[350970871,1738258146224,-500.0,0.00016438,2]
[350970872,1738258146244,-500.0,0.00016438,2]
[350970873,1738258146265,-500.0,0.00016438,2]
[350970874,1738258146285,-500.0,0.00016438,2]
[350970875,1738258146306,-500.0,0.00016438,2]
[350970876,1738258146326,-500.0,0.00016438,2]
[350970877,1738258146347,-500.0,0.00016438,2]
[350970878,1738258146370,-500.0,0.00016438,2]
[350970879,1738258146393,-500.0,0.00016438,2]
[350970880,1738258146415,-500.0,0.00016438,2]
[350970881,1738258146439,-523.33,0.00016438,2]
[350970882,1738258146460,-325.12670901,0.00016438,2]
[350970883,1738258146482,-500.0,0.00016438,2]
[350970884,1738258146502,-506.00293791,0.00016438,2]
[350970885,1738258146527,-509.19863349,0.00016438,2]
[350970886,1738258146548,-500.0,0.00016438,2]
[350970887,1738258146569,-500.0,0.00016438,2]
[350970888,1738258146589,-500.0,0.00016438,2]
[350970889,1738258146609,-500.0,0.00016438,2]
[350970890,1738258146632,-500.0,0.00016438,2]
[350970891,1738258146653,-500.0,0.00016438,2]
[350970892,1738258146673,-500.0,0.00016438,2]
[350970893,1738258146693,-500.0,0.00016438,2]
[350970894,1738258146712,-500.0,0.00016438,2]
[350970895,1738258146734,-500.0,0.00016438,2]
[350970896,1738258146756,-500.0,0.00016438,2]
[350970897,1738258146776,-500.0,0.00016438,2]
[350970898,1738258146797,-500.0,0.00016438,2]
[350970899,1738258146818,-500.0,0.00016438,2]
[350970900,1738258146839,-500.0,0.00016438,2]
[350970901,1738258146859,-507.11993169,0.00016438,2]
[350970902,1738258146879,-500.0,0.00016438,2]
[350970903,1738258146900,-500.0,0.00016438,2]
[350970904,1738258146921,-500.0,0.00016438,2]
[350970905,1738258146943,-500.0,0.00016438,2]
[350970906,1738258146964,-500.0,0.00016438,2]
[350970907,1738258146984,-500.0,0.00016438,2]
[350970908,1738258147006,-500.0,0.00016438,2]
[350970909,1738258147027,-500.0,0.00016438,2]
[350970910,1738258147048,-500.0,0.00016438,2]
[350970911,1738258147069,-500.0,0.00016438,2]
[350970912,1738258147090,-500.0,0.00016438,2]
[350970913,1738258147112,-500.0,0.00016438,2]
[350970914,1738258147132,-500.0,0.00016438,2]
[350970915,1738258147152,-500.0,0.00016438,2]
[350970916,1738258147173,-386.46625524,0.00016438,2]
[350970917,1738258147194,-500.0,0.00016438,2]
[350970918,1738258147214,-500.0,0.00016438,2]
[350970919,1738258147234,-500.0,0.00016438,2]
[350970920,1738258147254,-500.0,0.00016438,2]
[350970921,1738258147274,-500.0,0.00016438,2]
[350970922,1738258147294,-180.62,0.00016438,2]
[350970923,1738258147314,-415.56862837,0.00016438,2]
[350970924,1738258147334,-500.0,0.00016438,2]
[350970925,1738258147354,-500.0,0.00016438,2]
[350970926,1738258147374,-500.0,0.00016438,2]
[350970927,1738258147395,-500.0,0.00016438,2]
[350970928,1738258147415,-500.0,0.00016438,2]
[350970929,1738258147438,-500.0,0.00016574,2]
[350970930,1738258147462,-500.0,0.00016574,2]
[350970931,1738258147483,-500.0,0.00016574,2]
[350970932,1738258147506,-500.0,0.00016574,2]
[350970933,1738258147528,-500.0,0.00016574,2]
[350970934,1738258147549,-500.0,0.00016574,2]
[350970935,1738258147570,-40.34813751,0.00016574,2]
[350970942,1738258164115,-500.0,0.00016438,2]
[350970943,1738258164139,-459.65186249,0.00016574,2]
[350970944,1738258164162,-523.54,0.00016574,2]
[350970945,1738258164183,-500.0,0.00016574,2]
[350970946,1738258164205,-500.0,0.00016574,2]
[350970947,1738258164228,-500.0,0.00016574,2]
[350970948,1738258164376,-500.0,0.00016574,2]
[350970949,1738258164399,-500.0,0.00016574,2]
[350970950,1738258164423,-500.0,0.00016574,2]
[350970951,1738258164449,-500.0,0.00016574,2]
[350970952,1738258164471,-500.0,0.00016574,2]
[350970953,1738258164492,-500.0,0.00016574,2]
[350970954,1738258164515,-647.35,0.00016574,2]
[350970955,1738258164537,-591.09,0.00016574,2]
[350970956,1738258164560,-500.0,0.00016574,2]
[350970957,1738258164582,-500.31702974,0.00016574,2]
[350970958,1738258164606,-500.0,0.00016574,2]
[350970959,1738258164630,-500.0,0.00016574,2]
[350970960,1738258164655,-500.0,0.00016574,2]
[350970961,1738258164680,-500.0,0.00016574,2]
[350970962,1738258164704,-500.0,0.00016574,2]
[350970963,1738258164727,-500.0,0.00016574,2]
[350970964,1738258164749,-567.10363436,0.00016574,2]
[350970965,1738258164772,-500.0,0.00016575,2]
[350970966,1738258164792,-500.0,0.00016575,2]
[350970967,1738258164814,-500.0,0.00016575,2]
[350970968,1738258164836,-363.87319516,0.00016575,2]
[350970969,1738258164857,-271.53730881,0.00016575,2]
[350970970,1738258164880,-280.91739586,0.00016575,2]
[350970971,1738258164902,-540.21321174,0.00016575,2]
[350970972,1738258164923,-500.0,0.00016575,2]
[350970973,1738258164945,-500.0,0.00016575,2]
[350970974,1738258164967,-500.0,0.00016575,2]
[350970975,1738258164988,-264.01,0.00016575,2]
[350970976,1738258165016,-500.0,0.00016575,2]
[350970977,1738258165039,-225.68,0.00016575,2]
[350970978,1738258165061,-351.97,0.00016575,2]
[350970979,1738258165083,-500.0,0.00016575,2]
[350970980,1738258165105,-500.0,0.00016575,2]
[350970981,1738258165127,-500.0,0.00016575,2]
[350970982,1738258165149,-500.0,0.00016575,2]
[350970983,1738258165182,-500.0,0.00016711,2]
[350970984,1738258165204,-223.37,0.00016711,2]
[350970985,1738258165227,-500.0,0.00016711,2]
[350970986,1738258165250,-500.0,0.00016711,2]
[350970987,1738258165272,-597.25,0.00016711,2]
[350970988,1738258165295,-500.0,0.00016711,2]
[350970989,1738258165315,-500.0,0.00016711,2]
[350970990,1738258165336,-500.0,0.00016711,2]
[350970991,1738258165358,-500.0,0.00016711,2]
[350970992,1738258165382,-500.0,0.00016712,2]
[350970993,1738258165405,-500.0,0.00016712,2]
[350970994,1738258165428,-500.0,0.00016712,2]
[350970995,1738258165455,-500.0,0.00016712,2]
[350970996,1738258165476,-500.0,0.00016848,2]
[350970997,1738258165498,-500.0,0.00016848,2]
[350970998,1738258165522,-500.0,0.00016848,2]
[350970999,1738258165544,-401.98,0.00016848,2]
[350971000,1738258165566,-213.79724729,0.00016848,2]
[350971001,1738258165589,-541.74,0.00016848,2]
[350971002,1738258165614,-500.0,0.00016849,2]
[350971003,1738258165636,-183.34,0.00016849,2]
[350971004,1738258165660,-500.0,0.00016849,2]
[350971005,1738258165683,-500.0,0.00016849,2]
[350971006,1738258165706,-500.0,0.00016985,2]
[350971007,1738258165729,-150.48,0.00016985,2]
[350971008,1738258165752,-500.0,0.00016985,2]
[350971009,1738258165775,-500.0,0.00016986,2]
[350971010,1738258165797,-361.1,0.00016986,2]
[350971011,1738258165820,-500.0,0.00016986,2]
[350971012,1738258165841,-500.0,0.00017057,2]
[350971013,1738258165862,-516.1660903,0.0001711,2]
[350971014,1738258165883,-500.0,0.0001711,2]
[350971015,1738258165905,-500.0,0.0001711,2]
[350971016,1738258165929,-275.52,0.00017122,2]
[350971017,1738258165951,-500.0,0.00017122,2]
[350971018,1738258165973,-500.0,0.00017123,2]
[350971019,1738258165996,-483.61,0.00017123,2]
[350971020,1738258166016,-292.2451771,0.00017178,2]
[350971021,1738258166038,-500.0,0.00017204,2]
[350971022,1738258166063,-500.0,0.00017204,2]
[350971023,1738258166083,-489.26762352,0.00017204,2]
[350971024,1738258166109,-500.0,0.00017204,2]
[350971025,1738258166133,-405.10921098,0.00017204,2]
[350971026,1738258166160,-500.0,0.00017204,2]
[350971027,1738258166184,-500.0,0.00017204,2]
[350971028,1738258166207,-500.0,0.00017204,2]
[350971029,1738258166230,-500.0,0.00017204,2]
[350971030,1738258166254,-500.0,0.00017204,2]
[350971031,1738258166278,-500.0,0.00017204,2]
[350971032,1738258166301,-500.0,0.00017204,2]
[350971033,1738258166330,-500.0,0.00017204,2]
[350971034,1738258166354,-500.0,0.00017204,2]
[350971035,1738258166380,-500.0,0.00017204,2]
[350971036,1738258166405,-475.57719229,0.00017204,2]
[350971065,1738258232853,-500.0,0.00016438,2]
[350971066,1738258232863,-500.0,0.00016438,2]
[350971068,1738258232873,-500.0,0.00016438,2]
[350971069,1738258232884,-500.83680711,0.00016438,2]
[350971070,1738258232894,-500.0,0.00016438,2]
[350971071,1738258232903,-500.0,0.00016438,2]
[350971072,1738258232913,-500.0,0.00016438,2]
[350971073,1738258232922,-500.0,0.00016438,2]
[350971074,1738258232931,-500.0,0.00016438,2]
[350971075,1738258232941,-500.0,0.00016574,2]
[350971076,1738258232950,-500.0,0.00016574,2]
[350971077,1738258232959,-752.51,0.00016574,2]
[350971078,1738258232970,-500.0,0.00016575,2]
[350971079,1738258232980,-500.0,0.00016575,2]
[350971080,1738258232990,-500.0,0.00016575,2]
[350971081,1738258233000,-500.0,0.00016711,2]
[350971082,1738258233010,-500.0,0.00016711,2]
[350971083,1738258233019,-752.51,0.00016711,2]
[350971084,1738258233029,-500.0,0.00016712,2]
[350971085,1738258233038,-500.0,0.00016712,2]
[350971086,1738258233047,-500.0,0.00016848,2]
[350971087,1738258233057,-500.0,0.00016848,2]
[350971088,1738258233066,-752.51,0.00016848,2]
[350971089,1738258233076,-500.0,0.00016849,2]
[350971090,1738258233085,-500.0,0.00016849,2]
[350971091,1738258233095,-500.0,0.00016985,2]
[350971092,1738258233104,-361.65803864,0.00016985,2]
[350971093,1738258233113,-752.51,0.00016985,2]
[350971094,1738258233123,-500.0,0.00016986,2]
[350971095,1738258233132,-434.46515425,0.00016986,2]
[350971096,1738258233167,-65.53484575,0.00016986,2]
[350971097,1738258233177,-566.60906402,0.00017122,2]
[350971098,1738258233186,-324.35369418,0.00017122,2]
[350971140,1738258238685,-420.84,0.00017122,2]
[350971152,1738258241063,-207.67257652,0.00016438,2]
[350971181,1738258562658,5000.0,0.00020453,30]
[350971182,1738258676168,2968.82992239,0.00015101,2]
[350971184,1738258718565,2633.46896936,0.00015101,2]
[350971186,1738258810318,157.870766,0.00013973,2]
[350971187,1738258899966,1428.02119019,0.00015101,2]
[350971188,1738259138126,-1567.44253001,0.00015422,2]
[350971189,1738259253099,-399.195034,0.00015273,2]
[350971190,1738259253122,-75.16884859,0.00015422,2]
[350971191,1738259253144,-300.0,0.0001548,2]
[350971192,1738259253167,-9134.68307378,0.00015481,2]
[350971193,1738259347082,-300.0,0.0001548,2]
[350971194,1738259347104,-9260.69993156,0.00015481,2]
[350971195,1738259353118,-6504.61699466,0.00015481,2]
[350971196,1738259353139,-3327.680465,0.00015605,2]
[350971197,1738259356121,-297.47270815,0.00016337,2]
[350971198,1738259356143,-197.14795772,0.00016338,2]
[350971199,1738259356165,-500.0,0.00016438,2]
[350971200,1738259356188,-500.0,0.00016438,2]
[350971201,1738259356208,-500.0,0.00016438,2]
[350971202,1738259356230,-500.23453422,0.00016438,2]
[350971203,1738259356252,-501.0028369,0.00016438,2]
[350971204,1738259356273,-500.0,0.00016438,2]
[350971205,1738259356294,-500.0,0.00016438,2]
[350971206,1738259356316,-500.0,0.00016438,2]
[350971207,1738259356336,-190.49546711,0.00016438,2]
[350971208,1738259356358,-623.35489012,0.00016438,2]
[350971209,1738259356378,-500.0,0.00016438,2]
[350971210,1738259356400,-500.0,0.00016438,2]
[350971211,1738259356422,-500.0,0.00016438,2]
[350971212,1738259356443,-500.44987244,0.00016438,2]
[350971213,1738259356463,-500.0,0.00016438,2]
[350971214,1738259356486,-558.44328288,0.00016438,2]
[350971215,1738259356506,-500.0,0.00016438,2]
[350971216,1738259356526,-500.0,0.00016438,2]
[350971217,1738259356547,-500.0,0.00016438,2]
[350971218,1738259356569,-207.54415717,0.00016438,2]
[350971219,1738259356590,-500.0,0.00016438,2]
[350971220,1738259356610,-500.0,0.00016438,2]
[350971221,1738259356631,-500.0,0.00016438,2]
[350971222,1738259356652,-233.37150342,0.00016438,2]
[350971223,1738259356673,-500.0,0.00016438,2]
[350971224,1738259356696,-500.0,0.00016438,2]
[350971225,1738259356718,-500.0,0.00016438,2]
[350971226,1738259356739,-500.0,0.00016438,2]
[350971227,1738259356761,-500.0,0.00016438,2]
[350971228,1738259356782,-500.0,0.00016438,2]
[350971229,1738259356803,-500.0,0.00016438,2]
[350971230,1738259356825,-500.0,0.00016438,2]
[350971231,1738259356851,-500.0,0.00016438,2]
[350971232,1738259356872,-500.0,0.00016438,2]
[350971233,1738259356894,-500.0,0.00016438,2]
[350971234,1738259356916,-500.0,0.00016438,2]
[350971235,1738259356937,-500.0,0.00016438,2]
[350971236,1738259356959,-500.0,0.00016438,2]
[350971237,1738259356981,-500.0,0.00016438,2]
[350971238,1738259357004,-500.0,0.00016438,2]
[350971239,1738259357028,-500.0,0.00016438,2]
[350971240,1738259357048,-500.0,0.00016438,2]
[350971241,1738259357069,-500.0,0.00016438,2]
[350971242,1738259357090,-500.0,0.00016438,2]
[350971243,1738259357110,-504.28223705,0.00016438,2]
[350971244,1738259357131,-532.7560017,0.00016438,2]
[350971245,1738259357151,-500.0,0.00016438,2]
[350971246,1738259357171,-500.0,0.00016438,2]
[350971247,1738259357191,-500.0,0.00016438,2]
[350971248,1738259357213,-500.0,0.00016438,2]
[350971249,1738259357233,-506.58633253,0.00016438,2]
[350971250,1738259357254,-500.0,0.00016438,2]
[350971251,1738259357275,-500.0,0.00016438,2]
[350971252,1738259357295,-500.0,0.00016438,2]
[350971253,1738259357316,-500.49994201,0.00016438,2]
[350971254,1738259357338,-500.0,0.00016438,2]
[350971255,1738259357359,-500.0,0.00016438,2]
[350971256,1738259357379,-500.0,0.00016438,2]
[350971257,1738259357399,-500.0,0.00016438,2]
[350971258,1738259357420,-500.0,0.00016438,2]
[350971259,1738259357440,-501.34467318,0.00016438,2]
[350971260,1738259357461,-500.0,0.00016438,2]
[350971261,1738259357481,-500.0,0.00016438,2]
[350971262,1738259357502,-500.0,0.00016438,2]
[350971263,1738259357523,-500.0,0.00016438,2]
[350971264,1738259357545,-214.37200195,0.00016438,2]
[350971265,1738259357565,-500.0,0.00016438,2]
[350971266,1738259357586,-500.0,0.00016438,2]
[350971267,1738259357608,-500.0,0.00016438,2]
[350971268,1738259357628,-500.0,0.00016438,2]
[350971269,1738259357650,-500.0,0.00016438,2]
[350971270,1738259357672,-500.0,0.00016438,2]
[350971271,1738259357695,-500.0,0.00016438,2]
[350971272,1738259357717,-406.2360726,0.00016438,2]
[350971273,1738259357739,-500.0,0.00016438,2]
[350971274,1738259357760,-522.8999973,0.00016438,2]
[350971275,1738259357781,-500.0,0.00016438,2]
[350971276,1738259357802,-521.80205614,0.00016438,2]
[350971277,1738259357822,-522.86086598,0.00016438,2]
[350971278,1738259357846,-164.4,0.00016438,2]
[350971279,1738259357866,-455.90468222,0.00016438,2]
[350971280,1738259357889,-583.27,0.00016438,2]
[350971281,1738259357910,-500.0,0.00016438,2]
[350971282,1738259357932,-2823.46,0.00016438,2]
[350971283,1738259357952,-500.0,0.00016438,2]
[350971284,1738259357972,-500.0,0.00016438,2]
[350971285,1738259357993,-500.0,0.00016438,2]
[350971286,1738259358015,-500.0,0.00016438,2]
[350971287,1738259358035,-500.0,0.00016438,2]
[350971288,1738259358056,-500.0,0.00016438,2]
[350971289,1738259358077,-500.0,0.00016438,2]
[350971290,1738259358097,-500.0,0.00016438,2]
[350971291,1738259358117,-500.0,0.00016438,2]
[350971292,1738259358138,-500.0,0.00016438,2]
[350971293,1738259358159,-500.0,0.00016438,2]
[350971294,1738259358181,-500.0,0.00016438,2]
[350971295,1738259358202,-500.0,0.00016438,2]
[350971296,1738259358221,-500.82923764,0.00016438,2]
[350971297,1738259358241,-500.0,0.00016438,2]
[350971298,1738259358262,-500.0,0.00016438,2]
[350971299,1738259358283,-500.0,0.00016438,2]
[350971300,1738259358303,-500.0,0.00016438,2]
[350971301,1738259358325,-500.0,0.00016438,2]
[350971302,1738259358345,-500.0,0.00016438,2]
[350971303,1738259358366,-501.16203321,0.00016438,2]
[350971304,1738259358387,-500.0,0.00016438,2]
[350971305,1738259358408,-503.99654746,0.00016438,2]
[350971306,1738259358431,-500.0,0.00016438,2]
[350971307,1738259358452,-500.0,0.00016438,2]
[350971308,1738259358473,-594.77925672,0.00016438,2]
[350971309,1738259358494,-500.0,0.00016438,2]
[350971310,1738259358515,-500.0,0.00016438,2]
[350971311,1738259358536,-500.0,0.00016438,2]
[350971312,1738259358557,-500.0,0.00016438,2]
[350971313,1738259358578,-500.0,0.00016438,2]
[350971314,1738259358599,-500.0,0.00016438,2]
[350971315,1738259358619,-528.79696096,0.00016438,2]
[350971316,1738259358642,-500.0,0.00016438,2]
[350971317,1738259358663,-503.13950756,0.00016438,2]
[350971318,1738259358787,-500.0,0.00016438,2]
[350971319,1738259358808,-500.0,0.00016438,2]
[350971320,1738259358830,-500.0,0.00016438,2]
[350971321,1738259358855,-297.22734942,0.00016438,2]
[350971322,1738259358877,-500.0,0.00016438,2]
[350971323,1738259358898,-500.0,0.00016438,2]
[350971324,1738259358919,-501.21533099,0.00016438,2]
[350971325,1738259358940,-500.0,0.00016438,2]
[350971326,1738259358961,-500.0,0.00016438,2]
[350971327,1738259358982,-500.0,0.00016438,2]
[350971328,1738259359002,-500.0,0.00016438,2]
[350971329,1738259359023,-500.0,0.00016438,2]
[350971330,1738259359043,-500.0,0.00016438,2]
[350971331,1738259359064,-500.0,0.00016438,2]
[350971332,1738259359085,-504.29664819,0.00016438,2]
[350971333,1738259359108,-500.0,0.00016438,2]
[350971334,1738259359128,-500.0,0.00016438,2]
[350971335,1738259359149,-500.0,0.00016438,2]
[350971336,1738259359173,-500.0,0.00016438,2]
[350971337,1738259359196,-500.0,0.00016438,2]
[350971338,1738259359217,-500.0,0.00016438,2]
[350971339,1738259359239,-500.0,0.00016438,2]
[350971340,1738259359261,-500.0,0.00016438,2]
[350971341,1738259359283,-297.41292565,0.00016438,2]
[350971342,1738259359304,-500.0,0.00016438,2]
[350971343,1738259359334,-500.0,0.00016438,2]
[350971344,1738259359355,-500.0,0.00016438,2]
[350971345,1738259359377,-500.0,0.00016438,2]
[350971346,1738259359397,-500.0,0.00016438,2]
[350971347,1738259359418,-500.0,0.00016438,2]
[350971348,1738259359439,-500.0,0.00016438,2]
[350971349,1738259359461,-500.0,0.00016438,2]
[350971350,1738259359481,-500.0,0.00016438,2]
[350971351,1738259359503,-333.06036026,0.00016438,2]
[350971352,1738259359527,-500.0,0.00016438,2]
[350971353,1738259359547,-500.0,0.00016438,2]
[350971354,1738259359567,-242.88276468,0.00016438,2]
[350971355,1738259359588,-500.0,0.00016438,2]
[350971356,1738259359609,-500.0,0.00016438,2]
[350971357,1738259359633,-500.0,0.00016438,2]
[350971358,1738259359654,-500.0,0.00016438,2]
[350971359,1738259359675,-472.16486793,0.00016438,2]
[350971360,1738259359695,-500.81490185,0.00016438,2]